[Event "Polish Youth B18 Championship 2023"]
[Site "Jastrzebia Gora"]
[Date "2023.03.15"]
[Round "5.6"]
[White "Karolczuk, Iwo"]
[Black "Grzesik, Gracjan"]
[Result "1/2-1/2"]
[ECO "A62"]
[WhiteElo "2346"]
[BlackElo "2149"]
[Annotator "TA"]
[PlyCount "62"]
[EventDate "2023.03.11"]
[EventType "swiss"]
[EventCountry "POL"]
[SourceTitle "playchess.com"]
[Source "ChessBase"]
[SourceQuality "1"]
[TimeControl "40/5400+30:1800+30"]

{[%evp 25,62,45,55,47,47,53,44,61,50,47,48,52,58,52,51,45,53,39,42,-31,-32,-68,-62,-102,-56,-56,-48,-49,-33,-105,-35,-35,-35,-36,-36,-35,-36,-36,-33]} 1. d4 {[%emt 0:00:03]} Nf6 {[%emt 0:00:10]} 2. c4 {[%emt 0:00:06]} e6 {[%emt 0:00:03]} 3. g3 {[%emt 0:00:06]} c5 {[%emt 0:05:53]} 4. d5 {[%emt 0:00:55]} exd5 {[%emt 0:01:32]} 5. cxd5 {[%emt 0:00:08]} d6 {[%emt 0:00:04]} 6. Nc3 {[%emt 0:00:26]} g6 {[%emt 0:00:42]} 7. Bg2 {[%emt 0:00:17]} Bg7 {[%emt 0:00:04]} 8. Nf3 {[%emt 0:00:06]} O-O {[%emt 0:01:39][%cal Bh8f8,Bf8e8,Be8e4,Be4b4][%mdl 32]} 9. O-O {[%emt 0:00:24]} Re8 {[%emt 0:08:59]} 10. Bf4 {[%emt 0:00:08]} a6 {[%emt 0:03:43]} 11. a4 {[%emt 0:00:06]} Ne4 {[%emt 0:05:14]} 12. Nxe4 {[%emt 0:03:38]} Rxe4 {[%emt 0:00:41]} 13. Nd2 {[%emt 0:02:51]} Rb4 {[%emt 0:02:45]} 14. Ra2 {[%emt 0:01:10] 14.b3 is the fancy move. A62: Modern Benoni: Fianchetto Variation without early ...Nbd7.} Qe7 {[%emt 0:11:24]} ({Less strong is} 14... Rxb2 15. Rxb2 Bxb2 16. Nc4 $16) 15. b3 {[%emt 0:22:36]} Nd7 {[%emt 0:15:18]} 16. Nc4 {[%emt 0:05:45] White is slightly better.} Ne5 {[%emt 0:01:58]} 17. Nxe5 {[%emt 0:02:21]} Bxe5 {[%emt 0:00:29]} 18. Bd2 {[%emt 0:02:06]} a5 $1 {[%emt 0:02:09]} 19. Bxb4 {[%emt 0:01:55]} axb4 {[%emt 0:01:00] [#]} 20. Rc2 $146 {[%emt 0:10:46]} ({Predecessor:} 20. Qb1 b5 21. axb5 Ra3 22. Rc1 Qa7 23. Rd2 Bd7 24. e3 Bc3 25. b6 Qxb6 26. Ra2 {0-1 Dylag,E (2003)-Marcinczyk,M (1865) POL-ch U18 Girls 2022 (6)}) 20... Bd7 {[%emt 0:06:51]} 21. Qd3 {[%emt 0:10:52]} Ra5 {[%emt 0:04:58]} 22. Rc4 {[%emt 0:15:07]} (22. Rb1 $14) 22... b5 $15 {[%emt 0:03:11]} 23. axb5 {[%emt 0:00:09]} Bxb5 {[%emt 0:00:35]} 24. Bf3 {[%emt 0:02:42][%cal Od3e4]} Qa7 {[%emt 0:04:03]} (24... Ra2 $17 25. Rb1 (25. Qb1 Rb2 $17) 25... Qa7) 25. Qe4 {[%emt 0:03:21]} Bxc4 {[%emt 0:05:54]} 26. Qxc4 {[%emt 0:00:16]} Qa6 {[%emt 0:04:29]} 27. Qe4 {[%emt 0:07:40]} (27. Qxa6 $15 Rxa6 28. Be4) 27... Ra1 {[%emt 0:04:02]} (27... Ra3 $17 28. Rb1 Ra2) 28. Rxa1 {[%emt 0:02:31] Black is slightly better.} Qxa1+ {[%emt 0:00:04]} 29. Kg2 {[%emt 0:00:06]} Qc3 {[%emt 0:01:30]} 30. Qd3 {[%emt 0:03:32]} Qxd3 {[%emt 0:04:37]} 31. exd3 {[%emt 0:00:06]} Kf8 {[%emt 0:00:36] Weighted Error Value: White=0.18 (very precise) /Black=0.09 (flawless)} 1/2-1/2

[Event "Polish Youth B18 Championship 2023"]
[Site "Jastrzebia Gora"]
[Date "2023.03.15"]
[Round "5.7"]
[White "Biesiadecki, Adam"]
[Black "Czernek, Tymon"]
[Result "1-0"]
[ECO "E47"]
[WhiteElo "1761"]
[BlackElo "2314"]
[Annotator "TA"]
[PlyCount "113"]
[EventDate "2023.03.11"]
[EventType "swiss"]
[EventCountry "POL"]
[SourceTitle "playchess.com"]
[Source "ChessBase"]
[SourceQuality "1"]
[TimeControl "40/5400+30:1800+30"]

{[%evp 13,113,0,0,2,1,-6,9,-26,6,-30,-4,-29,0,-16,66,45,63,60,108,118,112,114,107,115,125,122,115,113,116,113,104,116,106,91,222,200,222,212,217,181,307,329,318,129,128,145,137,130,191,185,172,171,223,218,333,154,154,169,149,112,206,196,204,198,239,239,281,164,392,379,395,381,989,324,421,339,720,218,226,233,320,264,1117,989,1008,1003,1026,975,9124,6113,29973,29974,29974,29973,29980,29981,29980,29977,29982,-29979,29993,29994]} 1. d4 {[%emt 0:00:02]} Nf6 {[%emt 0:00:05]} 2. c4 {[%emt 0:00:05]} e6 {[%emt 0:00:13]} 3. Nc3 {[%emt 0:00:05]} Bb4 {[%emt 0:00:06]} 4. e3 {[%emt 0:00:04]} O-O {[%emt 0:00:18]} 5. Bd3 {[%emt 0:00:08]} b6 {[%emt 0:00:16]} 6. Nge2 {[%emt 0:00:58]} d5 {[%emt 0:00:16]} 7. cxd5 {[%emt 0:01:00]} exd5 {[%emt 0:00:08]} 8. O-O {[%emt 0:00:13] E48: Nimzo-Indian: Rubinstein: 5 Bd3 d5 including 6 Ne2, but excluding 6 a3.} Re8 {[%emt 0:01:46]} 9. Qc2 {[%emt 0:02:03]} Bb7 {[%emt 0:04:04]} 10. Bd2 {[%emt 0:09:02] The position is equal.} a6 {[%emt 0:02:45]} 11. Rac1 {[%emt 0:01:38]} Nbd7 {[%emt 0:03:17] [#]} 12. Rfd1 $146 {[%emt 0:04:09]} ({Predecessor:} 12. Ng3 Rc8 13. a3 Bd6 14. Nf5 Bf8 15. b4 Ne4 16. Ng3 Ndf6 17. Qb2 Bd6 18. Ncxe4 dxe4 {0-1 Araujo,S (2090)-Iturrizaga Bonelli,E (2625) American Continental 15th 2019 (1)}) 12... Nf8 {[%emt 0:01:57]} 13. Ng3 {[%emt 0:02:22]} Ng6 {[%emt 0:02:22]} (13... Ne6 $11) 14. Nce2 {[%emt 0:06:05][%csl LRb4,LRc7]} (14. Nb1 $5 {[%cal Rd2b4]} Bd6 15. Nf5 $14) 14... Bd6 {[%emt 0:13:01]} 15. Nf5 {[%emt 0:02:05]} Rc8 {[%emt 0:00:26]} (15... c6 $1 $14) 16. Nxd6 $16 {[%emt 0:01:26]} Qxd6 {[%emt 0:03:58]} 17. Bf5 {[%emt 0:01:25]} Nd7 {[%emt 0:03:00] [#]} 18. Bb4 $1 $36 {[%emt 0:05:04][%mdl 2624] Deflection. Keeping Black busy.} c5 {[%emt 0:00:16]} 19. dxc5 {[%emt 0:01:34]} bxc5 {[%emt 0:00:08]} 20. Bxd7 {[%emt 0:01:12][%mdl 64] Deflection} Qxd7 {[%emt 0:00:06]} 21. Bxc5 {[%emt 0:00:23]} d4 {[%emt 0:00:46]} 22. Rxd4 {[%emt 0:06:28]} Qc6 {[%emt 0:02:10][%csl Gb7][%cal Rc6g2]} 23. e4 {[%emt 0:03:15]} Nh4 {[%emt 0:18:52]} (23... Rxe4 $16 24. Qxe4 Qxe4 25. Rxe4 Bxe4) 24. Ng3 {[%emt 0:02:54]} Qg6 {[%emt 0:01:28]} 25. b4 {[%emt 0:04:21]} h5 {[%emt 0:01:18]} 26. Qe2 {[%emt 0:01:33]} Re5 {[%emt 0:02:07]} (26... Nxg2 {was necessary.} 27. Kxg2 h4 {[%mdl 64] Pin}) 27. f4 $18 {[%emt 0:01:51]} Ree8 {[%emt 0:00:35]} 28. Qxh5 {[%emt 0:01:05]} (28. Qf2 $18 {and White stays clearly on top.}) 28... Qxh5 $16 {[%emt 0:00:42]} 29. Nxh5 {[%emt 0:00:04]} Bxe4 {[%emt 0:00:17]} 30. Rd2 {[%emt 0:04:21]} Bxg2 {[%emt 0:01:45]} (30... Bb7 $16 {was worth a try.} 31. Ng3 Re6) 31. Rxg2 $18 {[%emt 0:00:20]} Nxg2 {[%emt 0:00:05]} 32. Kxg2 {[%emt 0:00:07]} Re2+ {[%emt 0:00:09]} (32... Rcd8 $142 33. Rc2 Rd3) 33. Kf3 $1 {[%emt 0:00:44]} Rxa2 {[%emt 0:04:00]} (33... Rd2 $142 34. Rg1 g6) 34. Rg1 {[%emt 0:02:38]} (34. Nxg7 $1 $18 {And now Nf5 would win.} Ra3+ 35. Kg4) 34... g6 $16 {[%emt 0:01:46][%cal Og8h7]} 35. Nf6+ {[%emt 0:01:20]} Kg7 {[%emt 0:00:25]} 36. Nd7 {[%emt 0:04:36]} Rd8 {[%emt 0:04:14] [#]} (36... Rd2 $16 {was called for.}) 37. Rd1 $1 $18 {[%emt 0:02:07]} Ra3+ {[%emt 0:03:19]} 38. Ke4 {[%emt 0:03:20]} f6 39. Rd6 {[%emt 0:04:35] Threatens to win with Bb6.} a5 {[%emt 0:06:35]} 40. Bd4 {[%emt 0:00:00]} (40. Nxf6 Rxd6 41. Ne8+ Kg8 42. Bxd6 (42. Nxd6 axb4 43. Kd4 Ra4 $16) 42... axb4 $16) (40. b5 $142 Rb3 41. Nxf6 {[%mdl 64] Discovered Attack} Rxd6 42. Ne8+ {[%mdl 64] Zwischenzug, Double Attack} Kh6 43. Nxd6) 40... Re8+ $2 {[%emt 0:00:00]} (40... Kf7 {keeps fighting.}) 41. Kd5 {[%emt 0:03:49]} axb4 {[%emt 0:01:56]} 42. Nxf6 {[%emt 0:02:22]} ({Resist} 42. Rxf6 Kh6 43. Ne5 Kh7 44. Rf7+ (44. Rxg6 Rxe5+ 45. fxe5 Kxg6 $11) 44... Kg8 $18) (42. Bxf6+ Kh7 43. Bd4 Ra5+ 44. Kc4 Rc8+ 45. Kxb4 Rf5 46. Nf6+ Kh6 $18) 42... Re7 {[%emt 0:02:42]} (42... Ra5+ 43. Kc4 Rc8+ 44. Kxb4 Rf5 45. Ng4+ Kf8) 43. Kc4 $2 {[%emt 0:01:19]} (43. Ng4+ Kf7 44. Ne5+ Ke8 45. Rxg6) 43... Rb7 {[%emt 0:01:29]} 44. Nd5+ {[%emt 0:01:12]} Kh7 $2 {[%emt 0:00:49]} (44... Kf8 45. Rf6+ Ke8) 45. Nxb4 $2 {[%emt 0:00:59]} (45. Rd8 {[%csl Gd4][%cal Rd8h8]} Kh6 46. Ne3 Rc3+ 47. Bxc3 bxc3 48. Ng4+ Kg7 49. Kxc3) 45... Ra4 {[%emt 0:00:43]} 46. Bc3 {[%emt 0:01:26]} Rc7+ {[%emt 0:00:47]} 47. Kb3 {[%emt 0:00:22]} Ra3+ {[%emt 0:03:48]} (47... Ra8 48. Nd5 Rf7) 48. Kxa3 {[%emt 0:00:12] Nd5 would kill now.} Rxc3+ {[%emt 0:00:05][%mdl 4096] Endgame KRN-KR} 49. Kb2 {[%emt 0:00:44]} Rf3 {[%emt 0:00:08]} 50. Nd3 {[%emt 0:01:27]} Rh3 {[%emt 0:00:06]} 51. Ne5 {[%emt 0:00:47]} Rxh2+ {[%emt 0:00:33]} 52. Kc3 {[%emt 0:00:15]} Rg2 {[%emt 0:00:07]} 53. Kd3 {[%emt 0:00:25]} Rg3+ {[%emt 0:01:28]} 54. Ke4 {[%emt 0:00:11]} Rg1 {[%emt 0:00:57] [#]} 55. Nxg6 $1 {[%emt 0:00:30]} Rxg6 {[%emt 0:00:14] [#]} (55... Rb1 56. Kf5) 56. Re6 $4 {[%mdl 8192]} Rf6 $4 {[%mdl 8192]} (56... Rxe6+ {avoids the disaster.} 57. Kf5 Ra6 58. Kg5 Kg7 59. Kf5 Ra5+ 60. Ke4 Kf6 61. f5 Ra4+ 62. Kf3 Kxf5 63. Ke3 Re4+ 64. Kd3 Kf4 65. Kd2 Re3 66. Kd1 Kf3 67. Kd2 Kf2 68. Kc1 Re2 69. Kb1 Ke3 70. Ka1 Kd3 71. Kb1 Kc3 72. Ka1 Kb3 73. Kb1 Re1#) 57. Rxf6 {[%emt 0:02:49] An entertaining game by Biesiadecki.   Weighted Error Value: White=0.44/Black=0.58} 1-0

[Event "Polish Youth B18 Championship 2023"]
[Site "Jastrzebia Gora"]
[Date "2023.03.15"]
[Round "5.8"]
[White "Kaliszuk, Kamil"]
[Black "Budzisz, Adrian"]
[Result "1-0"]
[ECO "E27"]
[WhiteElo "2217"]
[BlackElo "2069"]
[Annotator "TA"]
[PlyCount "63"]
[EventDate "2023.03.11"]
[EventType "swiss"]
[EventCountry "POL"]
[SourceTitle "playchess.com"]
[Source "ChessBase"]
[SourceQuality "1"]
[TimeControl "40/5400+30:1800+30"]

{[%evp 10,63,10,-8,7,1,0,-10,-19,0,0,0,0,0,-6,-20,12,6,52,39,54,44,36,36,114,121,176,175,171,38,29,-79,-79,-75,-84,-84,-81,-77,-88,-119,-116,-119,-119,-112,-60,-100,-100,-127,-45,-128,-112,-125,0,-83,958,868]} 1. d4 {[%emt 0:00:03]} Nf6 {[%emt 0:01:01]} 2. c4 {[%emt 0:00:14]} e6 {[%emt 0:00:07]} 3. Nc3 {[%emt 0:00:14]} Bb4 {[%emt 0:00:06]} 4. a3 {[%emt 0:00:11]} Bxc3+ {[%emt 0:00:10]} 5. bxc3 {[%emt 0:00:09]} O-O {[%emt 0:00:15]} 6. f3 {[%emt 0:00:43]} Nc6 {[%emt 0:00:12] E27: Nimzo-Indian: Sämisch: 5...0-0 6 f3.} 7. e4 {[%emt 0:21:05]} d6 {[%emt 0:00:28]} 8. Bd3 {[%emt 0:05:10]} b6 {[%emt 0:00:14] The position is equal.} 9. Bg5 {[%emt 0:07:16] The old main line.} h6 {[%emt 0:00:41]} 10. Bh4 {[%emt 0:00:43]} e5 {[%emt 0:00:05]} 11. Ne2 {[%emt 0:17:58]} Na5 {[%emt 0:01:30]} 12. Nc1 {[%emt 0:02:56] [#]} c5 $146 {[%emt 0:18:17]} (12... g5 $5 {[%cal Rg5h4]} 13. Bf2 Nh5 $11) ({Predecessor:} 12... Ba6 13. Nb3 Nxb3 14. Qxb3 c5 15. d5 g5 16. Bf2 Nh5 17. g3 Bc8 18. Qd1 Ng7 {½-½ Dylag,E (2082)-Kulpa,Z (1806) POL-ch U20 Girls 2020 (1)}) 13. Nb3 {[%emt 0:03:24]} b5 {[%emt 0:10:56]} 14. Nxa5 $14 {[%emt 0:07:59]} ({Much worse is} 14. cxb5 c4 15. Nxa5 (15. Bxf6 gxf6 16. Nxa5 Qxa5 $15) 15... Qxa5 $11) 14... Qxa5 {[%emt 0:00:10]} 15. Qd2 {[%emt 0:00:07]} bxc4 {[%emt 0:09:55]} 16. Bxc4 {[%emt 0:07:38]} Qd8 {[%emt 0:00:22]} (16... exd4 $14 17. cxd4 Qxd2+ 18. Kxd2 cxd4) 17. dxe5 $16 {[%emt 0:04:26]} Nxe4 {[%emt 0:17:59]} 18. Qf4 {[%emt 0:01:30][%mdl 64] Deflection. Active counter play!} Ng5 {[%emt 0:03:33]} 19. O-O {[%emt 0:03:40]} (19. exd6 $18 {0-0 is the strong threat.} Be6 20. Bg3) 19... dxe5 $14 {[%emt 0:01:39]} 20. Qxe5 {[%emt 0:00:16] [#]} (20. Qg3 $1 $11) 20... Nh3+ $1 $17 {[%mdl 64] Discovered Attack} 21. gxh3 {[%emt 0:00:24]} Qxh4 {[%emt 0:00:24]} 22. Bd5 {[%emt 0:04:24]} Bxh3 $1 {[%emt 0:00:18] Threatens to win with ...Rae8.} 23. Bxa8 {[%emt 0:00:39]} Bxf1 {[%emt 0:00:23]} 24. Rxf1 {[%emt 0:00:17] [#] Be4 would be deadly.} Rxa8 {[%emt 0:00:06]} 25. Qxc5 {[%emt 0:02:51][%mdl 4096] Endgame KQR-KQR} Re8 {[%emt 0:01:52]} 26. Qxa7 Re6 {[%emt 0:06:14]} (26... Re2 $17 {[%csl Ge2][%cal Rh4h2]} 27. Qc7 Qg5+ 28. Qg3 Qe3+ 29. Rf2 Qc1+ 30. Kg2 Re6) 27. Qf2 {[%emt 0:03:37]} Qc4 {[%emt 0:00:04][%mdl 1024] Black has strong compensation.} 28. Rc1 {[%emt 0:03:08]} h5 {[%emt 0:02:20]} (28... Re2 $17 29. Qg3 Re3) 29. Kh1 {[%emt 0:01:29]} ({White should try} 29. Re1 $15) 29... Re2 {[%emt 0:01:39]} 30. Qg3 {[%emt 0:00:15]} Ra2 {[%emt 0:05:06]} ({Black should play} 30... g6 $17 31. Qb8+ Kh7) 31. Qe5 {[%emt 0:01:26]} (31. Qb8+ $11 Kh7 32. Qb4) 31... Qc6 $2 {[%emt 0:06:31][%mdl 8192]} (31... g6 $17 32. Qe4 Qc5 33. Qe8+ Kg7) 32. Qb8+ {[%emt 0:00:26] Weighted Error Value: White=0.25 (precise) /Black=0.26 (precise)} ({Inferior is} 32. Qxh5 g6 33. Qh3 Rxa3 $15) 1-0

[Event "Polish Youth B18 Championship 2023"]
[Site "Jastrzebia Gora"]
[Date "2023.03.15"]
[Round "5.9"]
[White "Taranowicz, Michal"]
[Black "Kolodziejski, Piotr"]
[Result "0-1"]
[ECO "B13"]
[WhiteElo "1900"]
[BlackElo "2118"]
[Annotator "TA"]
[PlyCount "56"]
[EventDate "2023.03.11"]
[EventType "swiss"]
[EventCountry "POL"]
[SourceTitle "playchess.com"]
[Source "ChessBase"]
[SourceQuality "1"]
[TimeControl "40/5400+30:1800+30"]

{[%evp 13,56,31,37,30,32,37,33,37,39,39,32,31,48,39,57,12,12,1,18,-30,-19,-6,0,-124,-77,-45,-43,-134,-129,-206,-210,-786,-784,-780,-787,-749,-236,-756,-686,-2576,-1143,-29995,-29994,-29996,-29997]} 1. e4 {[%emt 0:00:48]} c6 {[%emt 0:00:07]} 2. d4 {[%emt 0:00:42]} d5 {[%emt 0:00:05]} 3. exd5 {[%emt 0:00:03]} cxd5 {[%emt 0:00:05]} 4. Bd3 {[%emt 0:00:04]} Nf6 {[%emt 0:00:35]} 5. c3 {[%emt 0:00:14]} Nc6 {[%emt 0:00:36]} 6. Bf4 {[%emt 0:00:05]} g6 {[%emt 0:05:39]} 7. Nf3 {[%emt 0:00:33]} Bf5 $1 {[%emt 0:05:55][%mdl 4] is recently more successful than 7...Bg7.} 8. Bxf5 {[%emt 0:02:11] B13: Caro-Kann: Exchange Variation and Panov-Botvinnik Attack.} gxf5 {[%emt 0:00:06]} 9. Qb3 {[%emt 0:00:11]} Qd7 {[%emt 0:02:14]} 10. Ne5 {[%emt 0:08:17] White is slightly better.} Nxe5 {[%emt 0:02:00]} 11. Bxe5 {[%emt 0:00:05]} Bg7 {[%emt 0:02:32]} 12. Nd2 {[%emt 0:00:30]} O-O {[%emt 0:05:34]} 13. Nf3 {[%emt 0:00:23] [#]} Rac8 $146 {[%emt 0:08:55]} ({Predecessor:} 13... e6 14. O-O Rac8 15. Rae1 Ne4 16. Bf4 Rfe8 17. Ne5 Qe7 18. Re2 Nd6 19. Nd3 Nc4 {1-0 Keller,P (2377)-Balabayeva,K (2177) Titled Tuesday intern op 03rd May Early blitz 2022 (6)}) 14. h3 {[%emt 0:02:53]} Kh8 {[%emt 0:02:44]} 15. Qc2 {[%emt 0:04:46][%cal Og2g4]} Rg8 {[%emt 0:03:44]} 16. Qd3 {[%emt 0:30:21]} (16. Bxf6 {is more appropriate.} Bxf6 17. g3) 16... Ne4 $11 {[%emt 0:10:23]} 17. O-O {[%emt 0:02:05]} Qe6 {[%emt 0:04:26]} 18. Rfe1 {[%emt 0:08:59]} (18. Bf4 $11 {keeps the balance.}) 18... Qg6 {[%emt 0:02:34]} (18... Bxe5 $142 19. Nxe5 Rg7) 19. Qf1 $17 {[%emt 0:01:34]} Qh5 {[%emt 0:06:40] And now ...Bxe5 would win.} 20. Kh1 {[%emt 0:00:54]} ({White should play} 20. Qe2 $1 $15) 20... Rc6 {[%emt 0:04:18] Black is more active.} 21. Re3 {[%emt 0:09:54]} (21. Bh2 $17) 21... Rg6 $1 $19 {[%emt 0:03:08]} 22. Qe2 $2 {[%emt 0:04:27] [#]} (22. Bf4) 22... Rxg2 $3 {[%emt 0:08:49][%mdl 512]} 23. Kxg2 {[%emt 0:00:05]} (23. Ne1 Ng3+) 23... Bxe5+ {[%emt 0:00:04][%cal Bg7e5,Be5f4,Bf4g3,Bg3e1][%mdl 32]} 24. Kf1 {[%emt 0:00:06]} Qxh3+ {[%emt 0:01:41]} 25. Ke1 {[%emt 0:00:05]} Bf4 {[%emt 0:01:26]} 26. Rd3 {[%emt 0:04:49] [#]} Nxf2 $1 {[%emt 0:01:45][%mdl 512]} 27. Kxf2 {[%emt 0:01:13]} (27. Qxf2 Bg3) 27... Bg3+ {[%emt 0:03:24]} 28. Kg1 {[%emt 0:00:19]} Be1+ {[%emt 0:00:25] Magnificent play by Kolodziejski!   Weighted Error Value: White=1.16/Black=0.26 (precise)} 0-1

[Event "Polish Youth B18 Championship 2023"]
[Site "Jastrzebia Gora"]
[Date "2023.03.15"]
[Round "5.10"]
[White "Wojdak, Jan"]
[Black "Karut, Kacper"]
[Result "1-0"]
[ECO "B30"]
[WhiteElo "2097"]
[BlackElo "1904"]
[Annotator "TA"]
[PlyCount "101"]
[EventDate "2023.03.11"]
[EventType "swiss"]
[EventCountry "POL"]
[SourceTitle "playchess.com"]
[Source "ChessBase"]
[SourceQuality "1"]
[TimeControl "40/5400+30:1800+30"]

{[%evp 19,101,-14,14,22,24,-9,0,-9,-14,-13,-7,-11,25,16,14,16,10,12,24,29,21,27,11,0,0,0,4,5,18,0,0,0,0,0,0,0,0,0,0,0,0,0,0,0,0,-14,0,0,126,152,135,140,262,254,293,270,322,329,321,314,524,516,475,476,531,545,12841,12842,12842,12843,12843,12843,12844,12844,12845,12845,12846,12847,12847,12847,12848,12848,12850,27999]} 1. e4 {[%emt 0:00:44]} c5 {[%emt 0:00:05]} 2. Nf3 {[%emt 0:00:07]} Nc6 {[%emt 0:00:08]} 3. Nc3 {[%emt 0:01:22]} d6 {[%emt 0:00:22]} 4. Bb5 {[%emt 0:00:07]} Bd7 {[%emt 0:01:10]} 5. Bxc6 {[%emt 0:00:12]} Bxc6 {[%emt 0:02:16]} 6. d4 {[%emt 0:00:08]} cxd4 {[%emt 0:01:05]} 7. Qxd4 {[%emt 0:00:47]} Nf6 {[%emt 0:08:09]} 8. Bg5 {[%emt 0:01:14]} e6 {[%emt 0:02:22]} 9. O-O-O {[%emt 0:00:14]} Be7 {[%emt 0:01:31]} 10. Qd3 {[%emt 0:04:04]} a6 {[%emt 0:08:28]} 11. Nd4 {[%emt 0:04:42] B53: Sicilian: 2...d6: Lines with Qxd4.} Rc8 {[%emt 0:05:37]} 12. h4 {[%emt 0:04:59]} b5 {[%emt 0:10:26]} 13. Nxc6 {[%emt 0:12:35] The position is equal.} Rxc6 {[%emt 0:00:13]} 14. Kb1 {[%emt 0:00:51]} O-O {[%emt 0:02:34]} 15. Ne2 {[%emt 0:00:21] [#]} d5 $146 {[%emt 0:10:57]} ({Predecessor:} 15... Rc4 16. f3 Qc7 17. b3 Rc6 18. Nd4 Rc3 19. Qe2 Rc8 20. Rd3 h6 21. Bc1 Rxd3 22. cxd3 {1-0 Demchenko,A (2654)-So,W (2778) Chess.com Rapid Wk4 Swiss 2022 (2)}) 16. Bxf6 {[%emt 0:13:37]} Bxf6 {[%emt 0:00:13]} 17. exd5 {[%emt 0:00:03]} Rd6 {[%emt 0:01:43][%cal Rd6d5]} 18. Qf3 {[%emt 0:00:21]} Rxd5 {[%emt 0:10:55]} 19. Rxd5 {[%emt 0:00:28]} Qxd5 {[%emt 0:00:01]} 20. Qxd5 {[%emt 0:01:55]} exd5 $11 {[%emt 0:00:01][%mdl 4096] Endgame KRB-KRN} 21. Nf4 {[%emt 0:01:44]} Rd8 {[%emt 0:01:24]} 22. g3 {[%emt 0:03:44]} Be5 {[%emt 0:01:55]} 23. Nd3 {[%emt 0:00:25]} Bd6 {[%emt 0:00:29]} 24. Re1 {[%emt 0:04:31]} f6 {[%emt 0:01:54]} 25. Kc1 {[%emt 0:00:11]} Kf7 {[%emt 0:01:59]} 26. Kd2 {[%emt 0:00:11]} Rc8 {[%emt 0:05:17]} 27. Ra1 {[%emt 0:03:36]} Rc4 {[%emt 0:02:57]} 28. b3 {[%emt 0:01:46]} Rc7 {[%emt 0:03:09]} 29. c3 {[%emt 0:00:10]} Be5 {[%emt 0:02:24]} 30. Rc1 {[%emt 0:00:32]} Bd6 {[%emt 0:00:40]} 31. f4 {[%emt 0:06:50]} h5 {[%emt 0:01:46]} 32. Ra1 {[%emt 0:00:49]} a5 {[%emt 0:03:30]} 33. a4 {[%emt 0:00:05]} b4 {[%emt 0:00:01]} (33... Rb7 $11 {remains equal.}) 34. cxb4 $16 {[%emt 0:00:15] White leaves nothing to chance now.} axb4 {[%emt 0:04:16]} 35. a5 {[%emt 0:04:43]} g5 {[%emt 0:01:34]} (35... Ra7 $16 36. a6 Ke6) 36. a6 $18 {[%emt 0:00:12] [#] Hoping for a7.} ({Don't play} 36. fxg5 $6 fxg5 37. hxg5 Ra7 $16) 36... Ra7 {[%emt 0:00:01]} 37. Ke3 {[%emt 0:02:50]} ({Not} 37. fxg5 fxg5 38. hxg5 Kg6 39. Nf4+ Kxg5 $16) 37... gxh4 {[%emt 0:00:39]} 38. gxh4 {[%emt 0:01:23]} Ke6 {[%emt 0:01:35]} 39. Kd4 {[%emt 0:00:48]} Be7 $2 {[%emt 0:02:16] [#]} (39... Bb8 {is a better defense.} 40. Kc5 Rc7+ 41. Kxb4 Ba7) 40. f5+ $1 {[%emt 0:00:00][%mdl 576] Deflection. White is clearly winning.} Kxf5 {[%emt 0:00:00]} 41. Kxd5 {[%emt 0:04:33]} Rd7+ {[%emt 0:18:28]} 42. Kc4 {[%emt 0:01:40]} Ke4 {[%emt 0:02:30]} 43. Nc5+ {[%emt 0:08:54]} Bxc5 {[%emt 0:00:05]} 44. Kxc5 {[%emt 0:00:01] KR-KR} Ra7 {[%emt 0:00:25]} 45. Kb6 {[%emt 0:02:45]} Ra8 {[%emt 0:00:10]} 46. Kb7 {[%emt 0:02:48]} Rf8 {[%emt 0:00:52]} 47. a7 {[%emt 0:01:53]} Kd3 {[%emt 0:00:03]} 48. a8=Q {[%emt 0:03:04]} ({Less strong is} 48. a8=B Kc2 $16) 48... Rxa8 {[%emt 0:00:01]} 49. Rxa8 {[%emt 0:00:11]} Kc3 {[%emt 0:00:06]} 50. Ra5 {[%emt 0:01:09]} Kxb3 {[%emt 0:00:06]} 51. Rxh5 {[%emt 0:00:02] Weighted Error Value: White=0.03 (flawless) /Black=0.31} 1-0